Workbook

Sheet LAI VAY THUAN > 30% EBITDA
A1: FB: Giao Dịch Liên Kết - Transfer Pricing
A2: GV: TRẦN THỊ NGỌC DIỆP
A3: BẢNG TÍNH CHI PHÍ LÃI VAY THEO NGHỊ ĐỊNH 132
B6: CHỈ TIÊU | C6: NĂM 2022
A8: 1 | B8: Doanh thu bán hàng và cung cấp dịch vụ | C8: 1,000,000,000
A9: 2 | B9: Các khoản giảm trừ doanh thu | C9: 0
A10: 3 | B10: Doanh thu thuần về bán hàng và cung cấp dịch vụ (3)=(1)-(2) | C10: =C8-C9 -> 1,000,000,000
A11: 4 | B11: Giá vốn hàng bán | C11: 700,000,000
A12: 5 | B12: Lợi nhuận gộp về bán hàng và cung cấp dịch vụ (5)=(3)-(4) | C12: =C10-C11 -> 300,000,000
A13: =A12+1 -> 6 | B13: Chi phí bán hàng | C13: 25,000,000
A14: =A13+1 -> 7 | B14: Chi phí quản lý doanh nghiệp | C14: 150,000,000
A15: 8 | B15: Doanh thu từ hoạt động tài chính | C15: 35,000,000
A16: 8.1 | B16: Trong đó: Lãi tiền gửi và lãi cho vay | C16: 5,000,000
A17: 9 | B17: Chi phí tài chính | C17: 100,000,000
A18: 9.1 | B18: Trong đó: Chi phí lãi vay | C18: 70,000,000
A19: 9.1.a | B19: Chi phí lãi vay được trừ trong kỳ | C19: =C26+C16 -> 57,500,000
A20: 9.1.b | B20: Phần chi phí lãi vay trong kỳ không được trừ chuyển sang kỳ sau | C20: =C18-C19 -> 12,500,000 | D20: B7
A21: 10 | B21: Chi phí khấu hao phát sinh trong kỳ | C21: 50,000,000
A22: 11 | B22: Lợi nhuận thuần từ hoạt động sản xuất kinh doanh trong kỳ (11)=(5)-(6)-(7)+(8)-(9) | C22: =C12-C13-C14+C15-C17 -> 60,000,000
A23: 12 | B23: Lợi nhuận thuần từ hoạt động sản xuất kinh doanh trong kỳ không bao gồm chênh lệch doanh thu và chi phí của hoạt động tài chính (12)=(11)-(8)+(9) | C23: =C22-C15+C17 -> 125,000,000
A24: 13 | B24: EBITDA (12)=(11)+(9.1)-(8.1)+(10) (*) | C24: =C22+C18-C16+C21 -> 175,000,000
A25: 14 | B25: Tỷ lệ chi phí lãi vay sau khi trừ lãi tiền gửi và lãi cho vay phát sinh trong kỳ /EBITDA; (14)=[(9.1)-(8.1)]/(13) | C25: =(C18-C16)/C24 -> 37%
A26: 14.1 | B26: 30% EBITDA) | C26: =C24*30% -> 52,500,000
A27: 14.2 | B27: Chi phí lãi vay thuần = (9.1)-(8.1) | C27: =C18-C16 -> 65,000,000
A28: 14,3 | B28: Tổng chi phí lãi vay sau khi trừ lãi tiền gửi và lãi cho vay phát sinh trong kỳ được trừ ( <= 30% EBITDA) | C28: =IF(AND(C26>0,C27>=C26),C26,(C27)) -> 52,500,000
A29: 15 | B29: Chi phí lãi vay của các kỳ trước chuyển sang, trong đó: (15)=(15.1)+(15.2)+(15.3)+(15.4)+(15.5)
A30: 15.1 | B30: - Phần chi phí lãi vay không được trừ từ năm (n-1) chuyển sang kỳ tính thuế (n)
A31: 15.2 | B31: - Phần chi phí lãi vay không được trừ từ năm (n-2) chuyển sang kỳ tính thuế (n)
A32: 15.3 | B32: - Phần chi phí lãi vay không được trừ từ năm (n-3) chuyển sang kỳ tính thuế (n)
A33: 15.4 | B33: - Phần chi phí lãi vay không được trừ từ năm (n-4) chuyển sang kỳ tính thuế (n)
A34: 15.5 | B34: - Phần chi phí lãi vay không được trừ từ năm (n-5) chuyển sang kỳ tính thuế (n)
A35: 16 | B35: Tỷ lệ chi phí lãi vay sau khi trừ lãi tiền gửi và lãi cho vay phát sinh cộng chi phí lãi vay của các kỳ trước chuyển sang trên tổng lợi nhuận thuần từ hoạt động kinh doanh cộng chi phí lãi vay (sau khi trừ lãi tiền gửi và lãi cho vay) trong kỳ cộng chi phí khấu hao trong kỳ (16)=[(9.1)-(8.1)+(15)]/(13)
A36: 17 | B36: Tỷ suất lợi nhuận sử dụng xác định giá giao dịch liên kết
A37: 17.1 | B37: - Tỷ suất …………………………………….
B40: Tổng chi phí lãi vay sau khi trừ lãi tiền gửi và lãi cho vay phát sinh trong kỳ của NNT được trừ khi xác định thu nhập chịu thuếTNDN không vượt quá 30% của tổng lợi nhuận thuần từ hoạt động kinh doanh trong kỳ cộng chi phí lãi vay sau khi trừ lãi tiền gửi và lãi cho vay phát sinh trong kỳ cộng chi phí khấu hao phát sinh trong kỳ của NNT; b) Phần chi phí lãi vay không được trừ theo quy định tại điểm a khoản này được chuyển sang kỳ tính thuế tiếp theo khi xác định tổng chi phí lãi vay được trừ trong trường hợp tổng chi phí lãi vay phát sinh được trừ của kỳ tính thuế tiếp theo thấp hơn mức quy định tại điểm a khoản này. Thời gian chuyển chi phí lãi vay tính liên tục không quá 05 năm kể từ năm tiếp sau năm PS chi phí lãi vay không được trừ;

Sheet LÃI VAY THUAN < 30%
A1: FB: Giao Dịch Liên Kết - Transfer Pricing
A2: GV: TRẦN THỊ NGỌC DIỆP
A3: BẢNG TÍNH CHI PHÍ LÃI VAY THEO NGHỊ ĐỊNH 132
B6: CHỈ TIÊU | C6: NĂM 2022
A8: 1 | B8: Doanh thu bán hàng và cung cấp dịch vụ | C8: 1,000,000,000
A9: 2 | B9: Các khoản giảm trừ doanh thu | C9: 5,000,000
A10: 3 | B10: Doanh thu thuần về bán hàng và cung cấp dịch vụ (3)=(1)-(2) | C10: =C8-C9 -> 995,000,000
A11: 4 | B11: Giá vốn hàng bán | C11: 700,000,000
A12: 5 | B12: Lợi nhuận gộp về bán hàng và cung cấp dịch vụ (5)=(3)-(4) | C12: =C10-C11 -> 295,000,000
A13: =A12+1 -> 6 | B13: Chi phí bán hàng | C13: 25,000,000
A14: =A13+1 -> 7 | B14: Chi phí quản lý doanh nghiệp | C14: 150,000,000
A15: 8 | B15: Doanh thu từ hoạt động tài chính | C15: 35,000,000
A16: 8.1 | B16: Trong đó: Lãi tiền gửi và lãi cho vay | C16: 5,000,000
A17: 9 | B17: Chi phí tài chính | C17: 100,000,000
A18: 9.1 | B18: Trong đó: Chi phí lãi vay | C18: 30,000,000
A19: 9.1.a | B19: Chi phí lãi vay được trừ trong kỳ | C19: =C28+C16 -> 30,000,000
A20: 9.1.b | B20: Phần chi phí lãi vay trong kỳ không được trừ chuyển sang kỳ sau | C20: 0
A21: 10 | B21: Chi phí khấu hao phát sinh trong kỳ | C21: 50,000,000
A22: 11 | B22: Lợi nhuận thuần từ hoạt động sản xuất kinh doanh trong kỳ (11)=(5)-(6)-(7)+(8)-(9) | C22: =C12-C13-C14+C15-C17 -> 55,000,000
A23: 12 | B23: Lợi nhuận thuần từ hoạt động sản xuất kinh doanh trong kỳ không bao gồm chênh lệch doanh thu và chi phí của hoạt động tài chính (12)=(11)-(8)+(9) | C23: =C22-C15+C17 -> 120,000,000
A24: 13 | B24: EBITDA (12)=(11)+(9.1)-(8.1)+(10) (*) | C24: =C22+C18-C16+C21 -> 130,000,000
A25: 14 | B25: Tỷ lệ chi phí lãi vay sau khi trừ lãi tiền gửi và lãi cho vay phát sinh trong kỳ /EBITDA; (14)=[(9.1)-(8.1)]/(13) | C25: =(C18-C16)/C24 -> 19%
A26: 14.1 | B26: 30% EBITDA) | C26: =C24*30% -> 39,000,000
A27: 14.2 | B27: Chi phí lãi vay thuần = (9.1)-(8.1) | C27: =C18-C16 -> 25,000,000
A28: 14,3 | B28: Tổng chi phí lãi vay sau khi trừ lãi tiền gửi và lãi cho vay phát sinh trong kỳ được trừ ( <= 30% EBITDA) | C28: =IF(AND(C26>0,C27>=C26),C26,(C27)) -> 25,000,000
A29: 14.4 | B29: Phần năm nay có thể nhận chi phí lãi vay các kỳ trước chuyển sang = 14.1 - 14.2 | C29: =C26-C27 -> 14,000,000
A30: 15 | B30: Chi phí lãi vay của các kỳ trước chuyển sang, trong đó: (15)=(15.1)+(15.2)+(15.3)+(15.4)+(15.5) | C30: =SUM(C31:C35) -> 10,000,000 | D30: B11
A31: 15.1 | B31: - Phần chi phí lãi vay không được trừ từ năm (n-1) chuyển sang kỳ tính thuế (n) | C31: 7,000,000 | D31: ví dụ chuyển từ 2021
A32: 15.2 | B32: - Phần chi phí lãi vay không được trừ từ năm (n-2) chuyển sang kỳ tính thuế (n) | C32: 3,000,000 | D32: ví dụ chuyển từ 2020
A33: 15.3 | B33: - Phần chi phí lãi vay không được trừ từ năm (n-3) chuyển sang kỳ tính thuế (n) | D33: không có để chuyển
A34: 15.4 | B34: - Phần chi phí lãi vay không được trừ từ năm (n-4) chuyển sang kỳ tính thuế (n)
A35: 15.5 | B35: - Phần chi phí lãi vay không được trừ từ năm (n-5) chuyển sang kỳ tính thuế (n)
A36: 16 | B36: Tỷ lệ chi phí lãi vay sau khi trừ lãi tiền gửi và lãi cho vay phát sinh cộng chi phí lãi vay của các kỳ trước chuyển sang trên tổng lợi nhuận thuần từ hoạt động kinh doanh cộng chi phí lãi vay (sau khi trừ lãi tiền gửi và lãi cho vay) trong kỳ cộng chi phí khấu hao trong kỳ (16)=[(9.1)-(8.1)+(15)]/(13)
A37: 17 | B37: Tỷ suất lợi nhuận sử dụng xác định giá giao dịch liên kết
A38: 17.1 | B38: - Tỷ suất …………………………………….
B41: Tổng chi phí lãi vay sau khi trừ lãi tiền gửi và lãi cho vay phát sinh trong kỳ của NNT được trừ khi xác định thu nhập chịu thuếTNDN không vượt quá 30% của tổng lợi nhuận thuần từ hoạt động kinh doanh trong kỳ cộng chi phí lãi vay sau khi trừ lãi tiền gửi và lãi cho vay phát sinh trong kỳ cộng chi phí khấu hao phát sinh trong kỳ của NNT; b) Phần chi phí lãi vay không được trừ theo quy định tại điểm a khoản này được chuyển sang kỳ tính thuế tiếp theo khi xác định tổng chi phí lãi vay được trừ trong trường hợp tổng chi phí lãi vay phát sinh được trừ của kỳ tính thuế tiếp theo thấp hơn mức quy định tại điểm a khoản này. Thời gian chuyển chi phí lãi vay tính liên tục không quá 05 năm kể từ năm tiếp sau năm PS chi phí lãi vay không được trừ;

Sheet NOTE
A1: FB: Giao Dịch Liên Kết - Transfer Pricing
A2: GV: TRẦN THỊ NGỌC DIỆP
A3: BẢNG TÍNH CHI PHÍ LÃI VAY THEO NGHỊ ĐỊNH 132
A6: Chỉ tiêu [B7]: NNT kê khai toàn bộ số tiền của các điều chỉnh khác (chưa được điều chỉnh tại các chỉ tiêu từ [B2] đến [B6]) do sự khác biệt giữa chế độ kế toán và Luật thuế TNDN dẫn đến làm tăng tổng thu nhập trước thuế. | B6: chưa có hướng dẫn chính xác vào chỉ tiêu này, là quan điểm cá nhân.
A7: Chỉ tiêu [B11]: NNT kê khai chi phí lãi vay không được trừ kỳ trước được chuyển sang kỳ này của doanh nghiệp có giao dịch liên kết
